bitfinex/quotes_BTCUSD_20241027
["timestamp","ask_amount","ask_price","bid_price","bid_amount"]
[1730057319207,0.005,67784.0,67783.0,0.03302157]
[1730057319593,0.005,67784.0,67783.0,0.18055057]
[1730057319807,0.005,67784.0,67783.0,0.03302157]
[1730057320152,0.006642,67784.0,67783.0,0.03302157]
[1730057320363,0.007642,67784.0,67783.0,0.03302157]
[1730057320573,0.006642,67784.0,67783.0,0.18055057]
[1730057320773,0.006642,67784.0,67783.0,0.03302157]
[1730057321422,0.006642,67784.0,67783.0,0.18055057]
[1730057321624,0.006642,67784.0,67783.0,0.03302157]
[1730057322472,0.094,67787.0,67783.0,0.03302157]
[1730057322684,0.094,67787.0,67784.0,0.0248529]
[1730057322960,0.147525,67785.0,67784.0,0.03302342]
[1730057323206,0.25658013,67785.0,67784.0,0.00817052]
[1730057323410,0.25658013,67785.0,67779.0,0.147538]
[1730057323620,0.25658013,67785.0,67776.0,0.295089]
[1730057323621,0.13390803,67781.0,67780.0,0.147535]
[1730057324045,0.13390803,67781.0,67780.0,0.1557138]
[1730057324260,0.13390803,67781.0,67780.0,0.0081778]
[1730057324483,0.13390803,67781.0,67780.0,0.1557138]
[1730057324706,0.28143203,67786.0,67780.0,0.1557138]
[1730057325149,0.13390803,67786.0,67782.0,0.147531]
[1730057325416,0.13390803,67786.0,67783.0,0.147528]
[1730057325633,0.13390803,67786.0,67784.0,0.147527]
[1730057325852,0.13390803,67786.0,67783.0,0.15572238]
[1730057326074,0.00221319,67784.0,67783.0,0.15572238]
[1730057326288,0.00221319,67784.0,67779.0,0.295073]
[1730057326528,0.147525,67785.0,67779.0,0.295073]
[1730057326944,0.147525,67785.0,67781.0,0.147533]
[1730057328202,0.094,67787.0,67780.0,0.295072]
[1730057328429,0.147526,67785.0,67781.0,0.147533]
[1730057328659,0.147523,67786.0,67779.0,0.295073]
[1730057328884,0.147525,67785.0,67782.0,0.147531]
[1730057329113,0.147525,67785.0,67781.0,0.147533]
[1730057329343,0.147525,67785.0,67778.0,0.29508]
[1730057329570,0.147525,67785.0,67781.0,0.147533]
[1730057329795,0.389045,67787.0,67781.0,0.147533]
[1730057330029,0.147528,67784.0,67780.0,0.147535]
[1730057330511,0.14753,67783.0,67779.0,0.147537]
[1730057330707,0.14753,67783.0,67779.0,0.147538]
[1730057331266,0.442576,67785.0,67781.0,0.147533]
[1730057331500,0.241521,67787.0,67783.0,0.147529]
[1730057331723,0.147523,67786.0,67783.0,0.147529]
[1730057331938,0.094,67787.0,67780.0,0.000821]
[1730057332160,0.147527,67784.0,67780.0,0.148356]
[1730057332385,0.147525,67786.0,67782.0,0.147531]
[1730057332607,0.241521,67787.0,67780.0,0.148356]
[1730057333116,0.094,67787.0,67781.0,0.147533]
[1730057333333,0.147518,67788.0,67781.0,0.147533]
[1730057333804,0.147521,67787.0,67781.0,0.147533]
[1730057335162,0.00221284,67789.0,67780.0,0.000821]
[1730057335424,0.13390803,67796.0,67780.0,0.000821]
[1730057335425,0.22132544,67796.0,67794.0,0.147504]
[1730057335684,0.22132544,67796.0,67789.0,0.00053057]
[1730057335900,0.13390803,67793.0,67789.0,0.00053057]
[1730057336138,0.13390803,67793.0,67789.0,0.295029]
[1730057336350,0.13390803,67797.0,67793.0,0.147507]
[1730057336799,0.13390803,67797.0,67794.0,0.147504]
[1730057337022,0.13390803,67797.0,67792.0,0.147508]
[1730057337249,0.13390803,67797.0,67792.0,0.295019]
[1730057337484,0.295027,67800.0,67789.0,0.295029]
[1730057337485,4e-05,67800.0,67795.0,0.295007]
[1730057337723,4e-05,67800.0,67795.0,0.00053057]
[1730057337994,4e-05,67800.0,67799.0,0.147494]
[1730057338271,4e-05,67800.0,67799.0,0.14802769]
[1730057338518,4e-05,67800.0,67799.0,0.35878245]
[1730057338762,0.294914,67817.0,67807.0,0.147477]
[1730057338983,0.147467,67812.0,67807.0,0.147476]
[1730057339175,0.147467,67812.0,67808.0,0.00738572]
[1730057339429,0.147473,67809.0,67808.0,0.00738572]
[1730057339681,0.294933,67812.0,67808.0,0.00738572]
[1730057339901,0.147478,67807.0,67799.0,0.15550381]
[1730057340135,0.147469,67811.0,67809.0,0.00738281]
[1730057340375,0.14747,67811.0,67805.0,0.14748]
[1730057340594,0.147478,67807.0,67802.0,0.147488]
[1730057340904,0.147477,67807.0,67806.0,0.00739154]
[1730057340969,0.13390803,67808.0,67803.0,0.29798881]
[1730057341117,0.147474,67809.0,67804.0,0.294966]
[1730057341591,0.294939,67811.0,67805.0,0.00616204]
[1730057341838,0.294937,67811.0,67805.0,0.00616204]
[1730057342080,0.147479,67807.0,67805.0,0.00616204]
[1730057342280,0.147479,67807.0,67803.0,0.29798881]
[1730057342509,0.294941,67810.0,67806.0,0.00735942]
[1730057342737,0.147473,67809.0,67804.0,0.147483]
[1730057343176,0.147475,67808.0,67805.0,0.00736233]
[1730057343667,0.22132544,67812.0,67805.0,0.00736233]
[1730057343901,0.1,67820.0,67805.0,0.00736233]
[1730057344124,0.147469,67811.0,67806.0,0.147478]
[1730057344343,0.001642,67808.0,67807.0,0.147477]
[1730057344565,0.001642,67808.0,67807.0,0.15483168]
[1730057345415,0.149117,67808.0,67807.0,0.00735468]
[1730057345649,0.149117,67808.0,67798.0,0.005]
[1730057345650,0.294956,67807.0,67800.0,0.147491]
[1730057345861,0.28139303,67804.0,67799.0,0.147493]
[1730057346068,0.28139303,67804.0,67801.0,0.00737213]
[1730057346069,0.13390803,67804.0,67801.0,0.00737213]
[1730057346283,0.13390803,67804.0,67800.0,0.15486703]
[1730057346499,0.13390803,67804.0,67802.0,0.00736922]
[1730057346711,0.13390803,67804.0,67801.0,0.00737213]
[1730057346928,0.13390803,67804.0,67803.0,0.00736631]
[1730057347161,0.13390803,67804.0,67802.0,0.00736922]
[1730057347351,0.13390803,67804.0,67803.0,0.00736631]
[1730057347558,0.13390803,67804.0,67801.0,0.14749]
[1730057347763,0.13390803,67804.0,67802.0,0.00736922]
[1730057349249,0.147479,67806.0,67802.0,0.00736922]
[1730057350095,0.296596,67808.0,67802.0,0.00736922]
[1730057350301,0.13390803,67803.0,67802.0,0.00736922]
[1730057350571,0.28139403,67803.0,67802.0,0.00736922]
[1730057350782,0.28139403,67803.0,67794.0,0.2023981]
[1730057350783,0.147492,67800.0,67794.0,0.2023981]
[1730057350993,0.13390803,67796.0,67795.0,0.15050381]
[1730057351175,0.13390803,67796.0,67795.0,0.15789534]
[1730057351620,0.13390803,67796.0,67795.0,0.00739153]
[1730057351855,0.13390803,67796.0,67789.0,0.005]
[1730057352078,0.294996,67798.0,67787.0,0.19115486]
[1730057352079,0.28141803,67792.0,67787.0,0.19115486]
[1730057352326,0.28141803,67792.0,67787.0,0.15050381]
[1730057352544,0.147514,67790.0,67789.0,0.04363486]
[1730057352760,0.13390803,67792.0,67789.0,0.04363486]
[1730057352972,0.147513,67791.0,67789.0,0.04363486]
[1730057353200,0.147514,67790.0,67789.0,0.04363486]
[1730057353407,0.147512,67791.0,67788.0,0.0438178]
[1730057353645,0.13390803,67790.0,67789.0,0.24963204]
[1730057353883,0.13390803,67790.0,67789.0,0.2595782]
[1730057354235,0.13390803,67790.0,67789.0,0.17194259]
[1730057355452,0.28142203,67790.0,67789.0,0.17194259]
[1730057355893,0.13390803,67790.0,67789.0,0.17194259]
[1730057356105,0.147507,67794.0,67789.0,0.17194259]
[1730057356343,0.147507,67794.0,67793.0,0.11000798]
[1730057356545,0.13390803,67795.0,67793.0,0.22800089]
[1730057356787,0.13390803,67795.0,67793.0,0.07596302]
[1730057357163,0.296588,67809.0,67795.0,0.147502]
[1730057357164,0.147488,67802.0,67795.0,0.147502]
[1730057357353,0.22132544,67801.0,67799.0,0.04399892]
[1730057357578,0.22132544,67801.0,67799.0,0.147494]
[1730057357753,0.28139003,67805.0,67800.0,0.00992462]
[1730057358195,0.28138903,67805.0,67800.0,0.00992462]
[1730057359462,0.147484,67804.0,67800.0,0.00992462]
[1730057359887,0.147484,67804.0,67798.0,0.147496]
[1730057360100,0.147484,67804.0,67801.0,0.00832459]
[1730057360308,0.13390803,67802.0,67795.0,0.19449779]
[1730057360521,0.13390803,67802.0,67798.0,0.147496]
[1730057360968,0.28139703,67802.0,67797.0,0.147498]
[1730057361187,0.13390803,67802.0,67797.0,0.147497]
[1730057361426,0.28139603,67802.0,67795.0,0.44550581]
[1730057361640,0.13390803,67802.0,67797.0,0.294998]
[1730057361845,0.13390803,67802.0,67798.0,0.147496]
[1730057362706,0.13390803,67802.0,67797.0,0.442495]
[1730057362913,0.13390803,67802.0,67797.0,0.294998]
[1730057363117,0.13390803,67802.0,67795.0,0.15050381]
[1730057363545,0.14749,67801.0,67797.0,0.147498]
[1730057363821,0.13390803,67802.0,67798.0,0.147494]
[1730057364035,0.28139703,67802.0,67797.0,0.147499]
[1730057364255,0.147491,67801.0,67796.0,0.1475]
[1730057364475,0.147493,67800.0,67795.0,0.15050381]
[1730057364698,0.147493,67800.0,67796.0,0.147501]
[1730057364956,0.44247,67801.0,67795.0,0.15050381]
[1730057365159,0.147492,67801.0,67795.0,0.29800481]
[1730057365375,0.28140003,67801.0,67795.0,0.29800481]
[1730057366017,0.147497,67798.0,67795.0,0.15050381]
[1730057366214,0.13390803,67801.0,67795.0,0.29800681]
[1730057366438,0.13390803,67801.0,67796.0,0.1475]
[1730057366856,0.13390803,67801.0,67795.0,0.15050381]
[1730057367065,0.13390803,67801.0,67796.0,0.1475]
[1730057367501,0.13390803,67801.0,67795.0,0.29800481]
[1730057367708,0.13390803,67801.0,67795.0,0.15050381]
[1730057368134,0.147495,67799.0,67792.0,0.147509]
[1730057368364,0.147492,67800.0,67793.0,0.148328]
[1730057368584,0.147493,67800.0,67793.0,0.148327]
[1730057369023,0.13390803,67801.0,67794.0,0.295009]
[1730057369448,0.13390803,67801.0,67795.0,0.147503]
[1730057369661,0.28139803,67801.0,67795.0,0.147502]
[1730057369849,0.001642,67802.0,67796.0,0.295002]
[1730057370285,0.001642,67802.0,67795.0,0.15050381]
[1730057370466,0.001642,67802.0,67801.0,0.14749]
[1730057371098,0.001642,67802.0,67797.0,0.294998]
[1730057371380,0.001642,67802.0,67799.0,0.294989]
[1730057371594,0.001642,67802.0,67801.0,0.14749]
[1730057372328,0.001642,67802.0,67801.0,0.15210439]
[1730057374204,0.001642,67802.0,67801.0,0.15210422]
[1730057376416,0.13555003,67802.0,67801.0,0.15210422]
[1730057377721,0.13555003,67802.0,67801.0,0.14749]
[1730057377932,0.13555003,67802.0,67801.0,0.00461424]
[1730057378606,0.28303803,67802.0,67801.0,0.00461424]
[1730057379854,0.13555003,67802.0,67801.0,0.00461424]
[1730057380393,0.28303803,67802.0,67801.0,0.00461424]
[1730057381019,0.41694606,67802.0,67801.0,0.00461424]
[1730057381245,0.41694606,67802.0,67794.0,0.15488736]
[1730057381246,0.147492,67800.0,67794.0,0.15488736]
[1730057381461,0.13390803,67795.0,67794.0,0.147504]
[1730057381666,0.13390803,67795.0,67794.0,0.15211877]
[1730057383341,0.13390803,67795.0,67794.0,0.147504]
[1730057383545,0.13390803,67795.0,67793.0,0.000821]
[1730057383546,0.28141203,67795.0,67793.0,0.000821]
[1730057383753,0.13390803,67795.0,67793.0,0.000821]
[1730057383960,0.28141103,67795.0,67793.0,0.000821]
[1730057384186,0.28141103,67795.0,67794.0,0.00461476]
[1730057384417,0.28141103,67795.0,67793.0,0.000821]
[1730057385277,0.13390803,67795.0,67793.0,0.000821]
[1730057385494,0.42891503,67795.0,67793.0,0.000821]
[1730057385712,0.28141103,67795.0,67793.0,0.000821]
[1730057385934,0.13390803,67795.0,67793.0,0.000821]
[1730057386151,0.28141203,67795.0,67793.0,0.000821]
[1730057386368,0.13390803,67795.0,67793.0,0.000821]
[1730057386847,0.13390803,67795.0,67793.0,0.148328]
[1730057387064,0.13390803,67795.0,67794.0,0.147505]
[1730057387724,0.13390803,67795.0,67793.0,0.148328]
[1730057387935,0.13390803,67795.0,67794.0,0.00461481]
[1730057388974,0.13390803,67795.0,67794.0,0.15211981]
[1730057389223,0.13390803,67795.0,67794.0,0.00461481]
[1730057391133,0.13390803,67795.0,67794.0,0.15211981]
[1730057391605,0.13390803,67795.0,67794.0,0.00461481]
[1730057391828,0.13390803,67795.0,67793.0,0.000821]
[1730057391829,0.147505,67794.0,67793.0,0.000821]
[1730057398980,0.13390803,67795.0,67793.0,0.000821]
[1730057399656,0.28141103,67795.0,67793.0,0.000821]
[1730057401021,0.147505,67794.0,67793.0,0.000821]
[1730057401389,0.28141203,67795.0,67793.0,0.000821]
[1730057402073,0.13390803,67795.0,67793.0,0.000821]
[1730057403425,0.28141103,67795.0,67793.0,0.000821]
[1730057403998,0.13390803,67795.0,67793.0,0.000821]
[1730057404203,0.294996,67798.0,67793.0,0.000821]
[1730057404434,0.13390803,67794.0,67793.0,0.000821]
[1730057404641,0.13390803,67794.0,67793.0,0.148328]
[1730057405086,0.00164,67800.0,67799.0,0.147494]
[1730057406602,0.13554803,67800.0,67797.0,0.294997]
[1730057406812,0.13554803,67800.0,67798.0,0.147495]
[1730057407030,0.13554803,67800.0,67799.0,0.147494]
[1730057407472,0.13554803,67800.0,67797.0,0.294997]
[1730057407693,0.13554803,67800.0,67798.0,0.147495]
[1730057408206,0.00164,67800.0,67799.0,0.147494]
[1730057408408,0.00164,67800.0,67799.0,0.15210842]
[1730057408636,0.00164,67800.0,67799.0,0.15949119]
[1730057409587,0.00164,67800.0,67799.0,0.15210842]
[1730057409796,0.00164,67800.0,67799.0,0.15949092]
[1730057409997,0.00164,67800.0,67799.0,0.31499473]
[1730057410416,0.00164,67800.0,67799.0,0.32199473]
[1730057410621,0.00164,67800.0,67799.0,0.4634556]
[1730057411260,0.00164,67800.0,67799.0,0.4654556]
[1730057411466,0.00164,67800.0,67799.0,0.66668005]
[1730057411683,0.00164,67800.0,67799.0,1.01068327]
[1730057411884,0.00164,67800.0,67799.0,1.17311976]
[1730057412123,0.00164,67800.0,67799.0,1.17511976]
[1730057412321,0.00164,67800.0,67799.0,1.17311976]
[1730057412756,0.00164,67800.0,67799.0,1.01068327]
[1730057412991,0.00164,67800.0,67799.0,0.94467473]
[1730057413235,1e-08,67802.0,67801.0,0.15249]
[1730057413504,1e-08,67802.0,67801.0,0.87735613]
[1730057414340,1e-08,67802.0,67801.0,0.83836381]
[1730057414765,1e-08,67802.0,67801.0,1.2706165]
[1730057414982,1e-08,67802.0,67801.0,1.2656165]
[1730057415616,1e-08,67802.0,67801.0,1.04236381]
[1730057415835,1e-08,67802.0,67801.0,1.03736381]
[1730057416250,1e-08,67802.0,67801.0,1.05438004]
[1730057416867,1e-08,67802.0,67801.0,1.05938004]
[1730057417079,1e-08,67802.0,67801.0,1.05438004]
[1730057417316,1e-08,67802.0,67801.0,1.05938004]
[1730057417528,1e-08,67802.0,67801.0,1.09831772]
[1730057418362,1e-08,67802.0,67801.0,0.93236381]
[1730057418569,1e-08,67802.0,67801.0,0.83336381]
[1730057419011,1e-08,67802.0,67801.0,0.74046381]
[1730057421042,1e-08,67802.0,67801.0,0.74546381]
[1730057421463,1e-08,67802.0,67801.0,0.74046381]
[1730057421670,1e-08,67802.0,67801.0,0.74546381]
[1730057423367,1e-08,67802.0,67801.0,0.75046381]
[1730057424021,1e-08,67802.0,67801.0,0.83336381]
[1730057447452,1e-08,67802.0,67801.0,0.88123945]
[1730057447702,1e-08,67802.0,67801.0,0.84036381]
[1730057447914,1e-08,67802.0,67801.0,1.00048336]
[1730057448367,1e-08,67802.0,67801.0,1.00248336]
[1730057448608,1e-08,67802.0,67801.0,1.10805179]
[1730057448817,1e-08,67802.0,67801.0,1.10605179]
[1730057449020,1e-08,67802.0,67801.0,1.10805179]
[1730057449465,1e-08,67802.0,67801.0,1.11229733]
[1730057449681,1e-08,67802.0,67801.0,1.32224212]
[1730057449894,1e-08,67802.0,67801.0,1.11809596]
[1730057450109,1e-08,67802.0,67801.0,1.21029733]
[1730057450330,0.001642,67808.0,67807.0,0.147477]
[1730057450537,0.001642,67808.0,67807.0,0.46030235]
[1730057450759,0.001642,67808.0,67807.0,0.91273235]
[1730057452118,0.001642,67808.0,67807.0,0.91473235]
[1730057452371,0.001642,67808.0,67807.0,0.91273235]
[1730057452598,0.001642,67808.0,67807.0,1.00064226]
[1730057453505,0.001642,67808.0,67807.0,0.91273235]
[1730057454440,0.001642,67808.0,67807.0,0.91285265]
[1730057456136,1e-06,67808.0,67807.0,1.21305402]
[1730057456377,0.00164,67809.0,67808.0,0.31235064]
[1730057456378,1e-06,67809.0,67808.0,0.31235064]
[1730057456643,1e-06,67809.0,67808.0,1.30116864]
[1730057456875,1e-06,67809.0,67808.0,1.16922629]
[1730057457348,1e-06,67809.0,67808.0,1.35742766]
[1730057457568,1e-06,67809.0,67808.0,1.27522629]
[1730057458023,0.22132544,67819.0,67818.0,0.53815437]
[1730057458230,0.096472,67852.0,67818.0,0.53815437]
[1730057458231,0.22132544,67826.0,67825.0,0.015]
[1730057458446,0.22132544,67833.0,67825.0,0.015]
[1730057458447,0.22132544,67833.0,67832.0,0.005]
[1730057458657,0.22132544,67833.0,67832.0,0.30292681]
[1730057458915,0.22132544,67840.0,67839.0,0.147407]
[1730057459367,0.1336577,67845.0,67837.0,0.294824]
[1730057459573,0.1336577,67845.0,67839.0,0.294815]
[1730057459788,0.1336577,67845.0,67839.0,0.147406]
[1730057459994,0.1336577,67845.0,67840.0,0.147405]
[1730057460454,0.1336577,67845.0,67839.0,0.147407]
[1730057460673,0.1336577,67841.0,67835.0,0.03]
[1730057460897,0.1336577,67841.0,67833.0,0.22132544]
[1730057460898,0.1336577,67836.0,67833.0,0.22132544]
[1730057461556,0.1336577,67836.0,67835.0,0.147416]
[1730057461785,0.0791,67841.0,67832.0,0.44227]
[1730057461786,0.1336577,67835.0,67832.0,0.44227]
[1730057463741,0.2810737,67835.0,67832.0,0.44227]
[1730057463941,0.14742,67833.0,67832.0,0.44227]
[1730057464679,0.23449417,67833.0,67832.0,0.44227]
[1730057464902,0.14742,67833.0,67832.0,0.44227]
[1730057465794,0.1336577,67835.0,67832.0,0.44227]
[1730057466006,0.2810747,67835.0,67832.0,0.44227]
[1730057466221,0.1336577,67835.0,67832.0,0.44227]
[1730057467945,0.389603,67842.0,67832.0,0.44227]
[1730057468150,0.389603,67842.0,67832.0,0.589692]
[1730057468151,0.1336577,67836.0,67832.0,0.589692]
[1730057469434,0.1336577,67836.0,67832.0,0.44227]
[1730057471014,0.14742,67833.0,67832.0,0.44227]
[1730057473627,0.56492381,67833.0,67832.0,0.44227]
[1730057473845,0.147433,67827.0,67826.0,0.0495074]
[1730057474052,0.2810907,67827.0,67826.0,0.0495074]
[1730057474306,0.2810907,67827.0,67821.0,0.22132544]
[1730057474307,0.1336577,67827.0,67821.0,0.22132544]
[1730057474500,0.1336577,67822.0,67821.0,0.22132544]
[1730057474708,0.2811017,67822.0,67821.0,0.22132544]
[1730057474927,0.1336577,67822.0,67816.0,0.294914]
[1730057475151,0.1336577,67817.0,67816.0,0.442371]
[1730057476562,0.1336577,67817.0,67816.0,0.147457]
[1730057477971,0.1336577,67821.0,67819.0,0.14745]
[1730057478315,0.1336577,67821.0,67812.0,0.294929]
[1730057478556,0.1336577,67821.0,67820.0,0.147449]
[1730057478766,0.1336577,67821.0,67816.0,0.147457]
[1730057479001,0.22074507,67821.0,67814.0,0.294924]
[1730057479355,0.1336577,67821.0,67817.0,0.147454]
[1730057479545,0.1336577,67821.0,67816.0,0.147457]
[1730057479546,0.2811047,67821.0,67816.0,0.147457]
[1730057479887,0.1336577,67821.0,67812.0,0.294931]
[1730057480088,0.14745,67820.0,67815.0,0.14746]
[1730057480299,0.14745,67820.0,67815.0,0.147458]
[1730057480504,0.08708827,67820.0,67811.0,0.294933]
[1730057480707,0.1336577,67817.0,67812.0,0.00461347]
[1730057481115,0.1336577,67813.0,67809.0,0.147472]
[1730057481335,0.1336577,67813.0,67810.0,0.00461368]
[1730057481536,0.1336577,67813.0,67810.0,0.147469]
[1730057481716,0.1336577,67813.0,67810.0,0.14747]
[1730057481867,0.1336577,67813.0,67807.0,0.294954]
[1730057482081,0.1336577,67813.0,67809.0,0.147472]
[1730057482281,0.1336577,67813.0,67807.0,0.294954]
[1730057482497,0.1336577,67813.0,67810.0,0.14747]
[1730057482698,0.1336577,67813.0,67808.0,0.147474]
[1730057483081,0.1336577,67813.0,67809.0,0.294942]
[1730057483505,0.1336577,67813.0,67811.0,0.147468]
[1730057483934,0.147459,67816.0,67811.0,0.147468]
[1730057484394,0.1336577,67817.0,67812.0,0.147465]
[1730057484603,0.00221182,67820.0,67810.0,0.294941]
[1730057484823,0.00221182,67820.0,67812.0,0.147465]
[1730057485030,0.00221182,67820.0,67813.0,0.147463]
[1730057486083,0.00221182,67820.0,67814.0,0.147461]
[1730057487429,0.00221182,67820.0,67814.0,0.14746]
[1730057487874,0.00221182,67820.0,67814.0,0.147461]
[1730057488093,0.00221182,67820.0,67815.0,0.147459]
[1730057488313,0.00221182,67820.0,67816.0,0.147457]
[1730057488986,0.00221182,67820.0,67813.0,0.294928]
[1730057489195,0.00221182,67820.0,67816.0,0.147457]
[1730057490090,0.00221182,67820.0,67814.0,0.442386]
[1730057490303,0.00221182,67820.0,67815.0,0.147457]
[1730057490515,0.00221182,67820.0,67816.0,0.147457]
[1730057490722,0.02215643,67820.0,67818.0,0.147453]
[1730057490899,0.00221182,67820.0,67811.0,0.294937]
[1730057491150,0.00221182,67820.0,67816.0,0.147456]
[1730057491819,0.00221182,67820.0,67814.0,0.29492]
[1730057492037,0.00221182,67820.0,67812.0,0.03]
[1730057492461,0.00221182,67820.0,67817.0,0.147455]
[1730057493379,0.00221182,67820.0,67814.0,0.294924]
[1730057493614,0.14966182,67820.0,67815.0,0.147458]
[1730057493848,0.00221182,67820.0,67817.0,0.147454]
[1730057494681,0.00221182,67820.0,67816.0,0.147457]
[1730057497423,0.00221182,67820.0,67818.0,0.147453]
[1730057497646,0.00221182,67820.0,67817.0,0.147455]
[1730057499615,0.14966182,67820.0,67816.0,0.147457]
[1730057499824,0.23697117,67820.0,67816.0,0.147457]
[1730057500288,0.00221182,67820.0,67817.0,0.147454]
[1730057500728,0.24184202,67820.0,67817.0,0.147454]
[1730057500951,0.00221182,67820.0,67819.0,0.147451]
[1730057501421,0.00221182,67820.0,67819.0,0.15206425]
[1730057503035,0.001644,67832.0,67819.0,0.15206425]
[1730057503036,0.001644,67832.0,67831.0,0.222425]
[1730057503474,0.001644,67832.0,67831.0,0.22703736]
[1730057508259,0.001644,67832.0,67831.0,0.222425]
[1730057511680,0.001644,67832.0,67831.0,0.224069]
[1730057514292,0.001644,67832.0,67831.0,0.321369]
[1730057514715,0.001644,67832.0,67831.0,0.325981]
[1730057515363,0.001644,67832.0,67831.0,0.321369]
[1730057517208,0.001644,67832.0,67831.0,0.224069]
[1730057520588,0.001644,67832.0,67831.0,0.076644]
[1730057521425,0.001644,67832.0,67831.0,0.224069]
[1730057523466,0.001644,67832.0,67831.0,0.076644]
[1730057523677,0.001644,67832.0,67831.0,0.149069]
[1730057524976,0.001644,67832.0,67831.0,0.001644]
[1730057525192,0.001644,67832.0,67831.0,0.149069]
[1730057525412,0.09377442,67832.0,67831.0,0.001644]
[1730057525836,0.24119742,67832.0,67831.0,0.001644]
[1730057526467,0.09377442,67832.0,67831.0,0.001644]
[1730057526878,0.09377442,67832.0,67831.0,0.149069]
[1730057527087,0.001644,67832.0,67831.0,0.37039444]
[1730057527334,0.001644,67832.0,67831.0,0.149069]
[1730057527525,0.001644,67832.0,67831.0,0.15368112]
[1730057527751,0.001644,67832.0,67831.0,0.149069]
[1730057528197,0.001644,67832.0,67831.0,0.15368114]
[1730057531595,0.001644,67832.0,67831.0,0.15368113]
[1730057533242,0.09377442,67832.0,67831.0,0.00625613]
[1730057533927,0.24119742,67832.0,67831.0,0.00625613]
[1730057536147,0.30985547,67832.0,67831.0,0.00625613]
[1730057536786,0.16243247,67832.0,67831.0,0.00625613]
[1730057536998,0.30985547,67832.0,67831.0,0.00625613]
[1730057541605,0.16243247,67832.0,67831.0,0.00625613]
[1730057541828,0.09377442,67832.0,67831.0,0.00625613]
[1730057542762,0.09377442,67832.0,67831.0,0.001644]
[1730057542985,0.09377442,67832.0,67831.0,0.00625646]
[1730057543435,0.24119742,67832.0,67831.0,0.00625646]
[1730057543661,0.09377442,67832.0,67831.0,0.00625646]
[1730057545489,0.17686046,67832.0,67831.0,0.00625646]
[1730057545945,0.09377442,67832.0,67831.0,0.00625646]
[1730057546171,0.001644,67832.0,67831.0,0.00625646]
[1730057549328,0.24119742,67832.0,67831.0,0.00625646]
[1730057549557,0.24119742,67832.0,67831.0,0.001644]
[1730057549558,0.41723949,67832.0,67831.0,0.001644]
[1730057550014,0.55668334,67832.0,67831.0,0.001644]
[1730057550904,0.70718715,67832.0,67831.0,0.001644]
[1730057558064,0.83218715,67832.0,67831.0,0.001644]
[1730057558482,0.83018715,67832.0,67831.0,0.001644]
[1730057558911,0.83218715,67832.0,67831.0,0.001644]
[1730057562002,1.05351259,67832.0,67831.0,0.001644]
[1730057562212,0.33171184,67819.0,67818.0,0.0496018]
[1730057562425,0.14746,67815.0,67814.0,0.000822]
[1730057562638,0.23959042,67815.0,67814.0,0.000822]
[1730057565770,0.14746,67815.0,67814.0,0.000822]
[1730057566399,0.147452,67819.0,67814.0,0.000822]
[1730057566621,0.09213042,67817.0,67815.0,0.0903]
[1730057569007,0.23958742,67817.0,67815.0,0.0903]
[1730057569744,0.09213042,67817.0,67815.0,0.0903]
[1730057569951,0.09213042,67817.0,67815.0,0.091944]
[1730057570380,0.147457,67816.0,67815.0,0.091944]
[1730057571253,0.23958642,67817.0,67815.0,0.091944]
[1730057572111,0.147457,67816.0,67815.0,0.091944]
[1730057574062,0.147457,67816.0,67815.0,0.001644]
[1730057581476,0.35201716,67816.0,67815.0,0.001644]
[1730057584241,0.25988674,67816.0,67815.0,0.001644]
[1730057586098,0.35201716,67816.0,67815.0,0.001644]
[1730057587444,0.23958742,67816.0,67815.0,0.001644]
[1730057597463,0.147457,67816.0,67815.0,0.001644]
[1730057599875,0.23958742,67816.0,67815.0,0.001644]
[1730057600681,0.39009123,67816.0,67815.0,0.001644]
[1730057607021,0.49009123,67816.0,67815.0,0.001644]
[1730057607230,0.65978439,67816.0,67815.0,0.001644]
[1730057610650,0.75191481,67816.0,67815.0,0.001644]
[1730057611080,0.60522165,67816.0,67815.0,0.001644]
[1730057611311,0.58222165,67816.0,67815.0,0.001644]
[1730057611512,0.58222165,67816.0,67815.0,0.081844]
[1730057612478,0.49009123,67816.0,67815.0,0.081844]
[1730057613397,0.58222165,67816.0,67815.0,0.081844]
[1730057615985,0.72891481,67816.0,67815.0,0.081844]
[1730057617250,0.58222165,67816.0,67815.0,0.081844]
[1730057619484,0.39796081,67816.0,67815.0,0.081844]
[1730057619698,0.247457,67816.0,67815.0,0.081844]
[1730057619925,0.147457,67816.0,67815.0,0.081844]
[1730057620133,0.23958742,67816.0,67815.0,0.081844]
[1730057623301,0.147457,67816.0,67815.0,0.081844]
[1730057623509,0.23958742,67816.0,67815.0,0.081844]
[1730057624391,0.147457,67816.0,67815.0,0.081844]
[1730057624618,0.23958742,67816.0,67815.0,0.081844]
[1730057624826,0.23958742,67816.0,67815.0,0.08871813]
[1730057625040,0.23958742,67816.0,67815.0,0.081844]
[1730057625264,0.23958742,67816.0,67815.0,0.08871813]
[1730057625482,0.23958742,67816.0,67815.0,0.081844]
[1730057627251,0.147457,67816.0,67815.0,0.081844]
[1730057627454,0.23958742,67816.0,67815.0,0.081844]
[1730057627661,0.23958742,67816.0,67815.0,0.08871813]
[1730057627879,0.23958742,67816.0,67815.0,0.081844]
[1730057628058,0.22860843,67816.0,67815.0,0.08871813]
[1730057628282,0.22860843,67816.0,67815.0,0.081844]
[1730057628484,0.22860843,67816.0,67815.0,0.08871813]
[1730057633696,0.22860843,67816.0,67815.0,0.081844]
[1730057633871,0.22860843,67816.0,67815.0,0.08877263]
[1730057635242,0.22860843,67816.0,67815.0,0.081844]
[1730057640399,0.23025243,67816.0,67815.0,0.081844]
[1730057642848,0.23025243,67816.0,67815.0,0.08953445]
[1730057643451,0.23025243,67816.0,67815.0,0.18763445]
[1730057646668,0.001644,67816.0,67815.0,0.18763445]
[1730057648412,0.001644,67816.0,67815.0,0.19224808]
[1730057651511,0.149101,67816.0,67815.0,0.19224808]
[1730057653295,0.001644,67816.0,67815.0,0.19224808]
[1730057654110,0.149101,67816.0,67815.0,0.19224808]
[1730057655090,0.149101,67816.0,67815.0,0.20424808]
[1730057655290,0.24123142,67816.0,67815.0,0.20424808]
[1730057659535,0.09377442,67816.0,67815.0,0.20424808]
[1730057659771,0.24123142,67816.0,67815.0,0.20424808]